Cogmind - Beta 9.3 @@@ ROGUE MODE // 2019.12.18 @ 18:25:02 // Winter2019/RPGLIKE Player: Cassie Rose Result: Destroyed by G-34 Mercenary with Small Laser Performance ------------- Evolutions (0) 0 Regions Visited (1) 200 Robots Destroyed (32) 160 Value Destroyed (444) 444 Prototype IDs (0) 0 Alien Tech Used (0) 0 Bonus (0) 0 TOTAL SCORE: 804 Bonus ------- None Cogmind --------- Core Integrity 0/800 Matter 268/300 Energy 150/150 System Corruption 0% Temperature Cool (267) Movement Treading (160) Location -10/Materials Parts ------- > --- POWER (2) -------- Light Ion Engine Light Ion Engine > --- PROPULSION (3) --- Light Treads Light Treads Light Treads > --- UTILITY (2) ------ Improved Terrain Scanner Seismic Analyzer > --- WEAPON (2) ------- Particle Gun Light Cannon > --- INVENTORY (0) ---- (None) Peak State ------------ > --- POWER ------------ Light Ion Engine Light Ion Engine > --- PROPULSION ------- Light Treads Light Treads Light Treads > --- UTILITY ---------- Improved Terrain Scanner Seismic Analyzer > --- WEAPON ----------- Particle Gun Light Assault Rifle > --- INVENTORY -------- (None) [Rating: 11] Favorites ----------- Power Light Ion Engine Engine Light Ion Engine Propulsion Light Treads Treads Light Treads Utility Seismic Analyzer Device Improved Terrain Scanner Processor Seismic Analyzer Weapon Light Assault Rifle Energy Gun EM Pulse Gun Ballistic Gun Light Assault Rifle Ballistic Cannon Light Cannon Build | -11 -10 ------- Run | Scr Mat Slots Evolved 5 | 5 . Power 1 | 1 . Propulsion 2 | 2 . Utility 1 | 1 . Weapon 1 | 1 . Parts Attached 15 | 8 7 Power 4 | 2 2 Engine 4 | 2 2 Core . | . . Reactor . | . . Propulsion 3 | 2 1 Treads 3 | 2 1 Leg . | . . Wheel . | . . Hover . | . . Flight . | . . Utility 2 | 2 . Device 1 | 1 . Storage . | . . Processor 1 | 1 . Hackware . | . . Protection . | . . Artifact . | . . Weapon 6 | 2 4 Energy Gun 3 | 1 2 Energy Cannon . | . . Ballistic Gun 2 | 1 1 Ballistic Cannon 1 | . 1 Launcher . | . . Special Weapon . | . . Impact Weapon . | . . Slashing Weapon . | . . Piercing Weapon . | . . Special Melee Weapon . | . . Unidentified Prototypes . | . . Parts Lost 2 | . 2 Power . | . . Propulsion . | . . Utility . | . . Weapon 2 | . 2 Highest Loss Streak 2 | . 2 Average Slot Usage (%) 95 | . 95 Engine 21 | . 21 Treads 30 | . 30 Device 11 | . 11 Processor 11 | . 11 Energy Gun 11 | . 11 Ballistic Gun 8 | . 8 Ballistic Cannon 2 | . 2 Naked Turns . | . . Heaviest Build 13 | 10 13 Greatest Support 60 | 40 60 Greatest Overweight (x) . | . . Average Overweight (x) . | . . Largest Inventory Capacity . | . . Average Capacity . | . . Most Carried . | . . Average Carried . | . . Final Capacity . | . . Final Carried . | . . Class Distribution -------------------- 80% | Mutant 19% | Scavenger-Mutant Dominant Class ---------------- Mutant | -10/Materials Resources | -11 -10 ----------- Run | Scr Mat Matter Collected 398 | 293 105 Remotely . | . . Salvage Created 1022 | 204 818 Parts 71 | 15 56 Haulers Intercepted 2 | . 2 Recyclers Shooed . | . . Parts Field Recycled . | . . Retrieved Matter . | . . Parts Self-Destructed . | . . Prevented . | . . Kills | -11 -10 ------- Run | Scr Mat Combat Hostiles Destroyed 15 | . 15 Guns 11 | . 11 Cannons 1 | . 1 AOE 3 | . 3 Classes Destroyed 9 | 3 6 Worker 4 | 2 2 Builder 1 | . 1 Tunneler 4 | 3 1 Hauler 2 | . 2 Recycler 2 | 1 1 Operator 1 | . 1 Watcher 3 | . 3 Swarmer 9 | . 9 Grunt 6 | . 6 Best Kill Streak 7 | 4 7 Combat Bots Only 4 | . 4 Max Kills in Single Turn 2 | 1 2 Gunslinging . | . . Exploded 2 | . 2 Melee . | . . Uniques/NPCs Destroyed . | . . Combat | -11 -10 -------- Run | Scr Mat Damage Taken 1096 | . 1096 Core 860 | . 860 Absorbed by Shields . | . . Redirected to Core 738 | . 738 Core Remaining (%) 100 | 100 . Volleys Fired 80 | 13 67 Largest 2 | 2 2 Hottest 100 | 60 100 Shots Fired 143 | 26 117 Gun 134 | 26 108 Cannon 9 | . 9 Launcher . | . . Special . | . . Kinetic 63 | 13 50 Thermal 24 | . 24 Explosive . | . . Electromagnetic 56 | 13 43 Robot Hit Streak 8 | 7 8 Robot Miss Streak 7 | 2 7 Penetration Max . | . . Secondary Targets 2 | . 2 Max Gunslinging Chain 1 | . 1 Shots Hit Robots 76 | 15 61 Core Hits 39 | 7 32 Critical Hits 1 | . 1 Critical Kills . | . . Critical Parts Destroyed 1 | . 1 Melee Attacks . | . . Impact . | . . Slashing . | . . Piercing . | . . Sneak Attacks . | . . Combat Hostiles . | . . Follow-up Attacks . | . . Damage Inflicted 1294 | 154 1140 Guns 942 | 154 788 Cannons 51 | . 51 Explosions 301 | . 301 Melee . | . . Ramming . | . . Kinetic 232 | 35 197 Thermal 553 | . 553 Explosive . | . . Electromagnetic 509 | 119 390 Impact . | . . Slashing . | . . Piercing . | . . Highest Corruption . | . . Average Corruption . | . . Corruption Purged . | . . Overload Shots . | . . Overflow Damage . | . . Projectiles . | . . Explosions . | . . Melee . | . . Knockbacks 1 | . 1 Impact . | . . Kinetic 1 | . 1 Secondary . | . . Self-Inflicted Damage 75 | . 75 Shots 3 | . 3 Rammed . | . . Targets Rammed . | . . Kicked . | . . Crushed . | . . Highest Temperature 490 | 75 490 Average Temperature 132 | 24 151 Received Heat Transfer 282 | . 282 Effects 21 | . 21 Shutdowns 8 | . 8 Energy Bleed 3 | . 3 Interference 3 | . 3 Matter Decay 3 | . 3 Short Circuit 1 | . 1 Damage (minor) 3 | . 3 Siege Activations . | . . Robots Corrupted . | . . Combat Hostiles . | . . Parts Fried . | . . Impact Corruptions . | . . Robots Melted . | . . Combat Hostiles . | . . Parts Melted . | . . Heat Transferred 992 | . 992 Parts Sabotaged . | . . Parts Stolen . | . . Parts Stripped . | . . Power Chain Reactions 6 | . 6 Missiles Intercepted . | . . Alert | -11 -10 ------- Run | Scr Mat Peak Influence 322 | 30 322 Average Influence 173 | 14 214 Maximum Alert Level 1 | . 1 Low Security (%) 49 | 100 36 Level 1 50 | . 63 Level 2 . | . . Level 3 . | . . Level 4 . | . . Level 5 . | . . High Security . | . . Max Security . | . . Squads Dispatched 2 | . 2 Investigation . | . . Extermination . | . . Reinforcement 2 | . 2 Assault . | . . Garrison . | . . Intercept . | . . Construction Impeded . | . . Haulers Reinforced . | . . Stealth | -11 -10 --------- Run | Scr Mat Distress Signals 1 | . 1 Communications Jammed . | . . Distress Signals . | . . Times Spotted 27 | . 27 Peak Tracking Total 4 | . 4 Tactical Retreats 1 | . 1 Traps | -11 -10 ------- Run | Scr Mat Traps Triggered 1 | . 1 Indirectly . | . . Trap Hack Attempts . | . . Triggered . | . . Disarmed . | . . Reprogrammed . | . . Reused . | . . Traps Extracted . | . . Installed . | . . Triggered 1 | . 1 Machines | -11 -10 ---------- Run | Scr Mat Machines Disabled 2 | . 2 Max in Single Turn 1 | . 1 Machines Sabotaged . | . . Garrisons Compromised . | . . Overloaded Fab Kills . | . . Fab Network Shutdowns . | . . Hacking | -11 -10 --------- Run | Scr Mat Machines Accessed . | . . Terminals . | . . Fabricators . | . . Repair Stations . | . . Recycling Units . | . . Scanalyzers . | . . Garrison Access . | . . Total Hacks . | . . Successful . | . . Failed . | . . Catastrophic . | . . Database Lockouts . | . . Manual . | . . Terminals . | . . Fabricators . | . . Repair Stations . | . . Recycling Units . | . . Scanalyzers . | . . Garrison Access . | . . Terminal Hacks . | . . Fabricator Hacks . | . . Repair Station Hacks . | . . Recycling Unit Hacks . | . . Scanalyzer . | . . Garrison Access Hacks . | . . Unauthorized Hacks . | . . Terminals . | . . Fabricators . | . . Repair Stations . | . . Recycling Units . | . . Scanalyzers . | . . Garrison Access . | . . Data Cores Recovered . | . . Used . | . . Hacking Detections . | . . Full Trace Events . | . . Feedback Events . | . . Feedback Blocked . | . . Robot Schematics Acquired . | . . Robots Built . | . . Matter . | . . Time . | . . Total Robot Build Rating . | . . Part Schematics Acquired . | . . Parts Built . | . . Matter . | . . Time . | . . Total Part Build Rating . | . . Parts Repaired . | . . Time . | . . Parts Recycled . | . . Recycled Matter . | . . Retrieved Matter . | . . Retrieved Components . | . . Parts Scanalyzed . | . . Part Schematics Acquired . | . . Parts Damaged . | . . Bothacking | -11 -10 ------------ Run | Scr Mat Used RIF Installer . | . . Robots Hacked . | . . Non-combat . | . . Combat . | . . Robot Hacks Applied . | . . Relay Couplers Released . | . . Robots Rewired . | . . Allies Hacked . | . . Hacks Repelled . | . . Allies | -11 -10 -------- Run | Scr Mat Total Allies . | . . Largest Group . | . . Highest-Rated Group . | . . Highest-Rated Ally . | . . Total Orders . | . . Ally Attacks . | . . Total Damage . | . . Kills . | . . Allies Corrupted . | . . Allies Melted . | . . Intel | -11 -10 ------- Run | Scr Mat Robot Analysis Total . | . . Derelict Logs Recovered . | . . Drone Launches . | . . Drone Recoveries . | . . Exploration | -11 -10 ------------- Run | Scr Mat Turns Passed 819 | 165 654 Spaces Moved 357 | 75 282 Core 3 | 3 . Treads 354 | 72 282 Legs . | . . Wheels . | . . Hover . | . . Flight . | . . Fastest Speed 50 | 50 160 Average Speed 159 | 155 160 Slowest Speed 160 | 160 160 Overloaded Moves . | . . Propulsion Burnouts . | . . Robots Hopped . | . . Cave-ins Triggered . | . . Exploration Rate (%) 29 | 5 54 Regions Visited 1 Branch Regions . Pre-discovered Areas . | . . Known Exits Taken . | . . Unknown Exits Taken 1 | 1 . Scrap Searched . | . . Spaces Dug . | . . Terrain Destroyed 20 | . 20 Melee . | . . Projectile . | . . AOE 20 | . 20 Actions | -11 -10 --------- Run | Scr Mat Total 469 | 96 373 Wait 14 | 1 13 Move 356 | 74 282 Hop . | . . Pick Up . | . . Fast Attach 14 | 8 6 Attach . | . . Detach . | . . Swap 1 | . 1 Drop 1 | . 1 Fire 80 | 13 67 Melee . | . . Ram . | . . Kick . | . . Crush . | . . Escape Stasis . | . . Rewire . | . . Trap . | . . Miscellaneous 3 | . 3 Route ------- -11/Scrapyard -10/Materials (discovered 3 exits: [Mat] / [*Min x2]) History --------- Turn | Location | Event 1 | -11/Scrapyard | Upgraded with Power slot (x1) 1 | -11/Scrapyard | Upgraded with Propulsion slot (x2) 1 | -11/Scrapyard | Upgraded with Utility slot (x1) 1 | -11/Scrapyard | Upgraded with Weapon slot (x1) 19 | -11/Scrapyard | Discovered new exit (range 16) 166 | -11/Scrapyard | Entered Materials 249 | -10/Materials | Discovered new exit (range 6) 300 | -10/Materials | Build established: Mutant 389 | -10/Materials | Discovered new exit (range 12) 439 | -10/Materials | Discovered new exit (range 10) 587 | -10/Materials | Core integrity fell below 50% 599 | -10/Materials | Reached level 2 626 | -10/Materials | Core integrity fell below 20% 820 | -10/Materials | Destroyed by G-34 Mercenary with Small Laser Last Messages --------------- 00645_ R-06 Scavenger collects Ion Engine. 00646_ Overheating: Lgt. Ion Engine damaged (-7). 00646_ K-01 Serf collects debris. 00658_ Acquired 5 matter. 00659_ K-01 Serf collects debris. 00664_ Dropped Lgt. Ion Engine. 00665_ R-06 Scavenger destroyed. 00666_ K-01 Serf collects debris. 00667_ O-16 Technician: "IFF HANDSHAKE FAILED. SECURING TERMINAL." 00667_ Acquired 10 matter. 00669_ K-01 Serf collects debris. 00678_ ALERT: Hostiles spotted, dispatching reinforcements to Terminal M004. 00679_ K-01 Serf collects debris. 00697_ Acquired Lgt. Cannon. 00707_ T-07 Excavator destroyed. 00710_ Acquired 14 matter. 00751_ A-02 Transporter destroyed. 00802_ G-34 Mercenary destroyed. 00811_ G-34 Mercenary knocked back. Map ----- +----------------------------------------------------+ | ??????????????????????????????????? | | ??????????????????????????????????? | | ??????????????????????????????????? | | ??????????????????????????????????? | | ??????????????????????????????????? | | ??????????????????????????????????? | | ??????????????????????????????????? | | ??????????????????????????????????? | | ??????????????????????????????????? | | ??????????????????????????????????? | | ????????#?????????????????????????? | | ?????#????#??#?#??????????????????? | | ?????##??????????#?????#????????? ? | | ???????????????#??????????????????? | | ?#???###########??????????????????? | | ?????# #??????????????????? | | ?????# "T" #????????????"????? | | ?????# ! #?????????? ???????? | | ?????# #????????????? ?? ?? | | ?????# """ """ # ????????#????#???# | | ?????# """ """ #??????"????#??????? | | ??#??# """ """ #??????""?##??? ???? | | ?????# #? ??? ???#??????Y? | | ?????#####+###+#???########??#?? ? | | ????????# ##?## ##??? ?? | | ????????# @ #???# #?#???? ? | | ????????# #??## ########? | | ? "????# ##### # """" #? | | ? """??# # # """" ## | | # """ # # # """" ## | | # + + # #? | | # """ # %# # % #? | | ? """??###!= *# # ## | | ? "??????#g### ## #####+## | | ????????#?#*#?# ## #?# | | ??? ??????#t#?# u## #?# | | ???????##?# #?# r## ### | | ????? ????# ### ######+##?# # | | ??????????# ## #####!#### %# | | ??????????# ## =%=%[= #" | | ?????? ???? ?# %% =%!=[%* ## | | ???????"??? ?# %==%=!*%*= ^+ | | ???????? ?? ?# ##"###%!=###### | | ??????????? ?####### =## =#??#?? | | ??????????? ??#????# ## ##??## | | ???????????+???????# ## #####? | | ???????????????#??## ?## #####? | | ??????????????????## #?# #???#?? | | ????????????????#??# #??# ##??#?? | | ????????????????##?##???# ^ ? ?? | +----------------------------------------------------+ Best States ------------- Heat Dissipation 25 Energy Generation 15 Energy Capacity 150 Matter Stores 300 Matter Capacity 300 Sight Range 16 Terrain Scan Range 16 Terrain Scan Density 60 Evasion (%) 40 Recoil Reduction 3 Item Schematics ----------------- None Robot Schematics ------------------ None Fabricated ------------ Nothing Alien Tech Used ----------------- None Achievements -------------- None Challenges ------------ None RPGLIKE | -11 -10 --------- Run | Scr Mat Levels Raised 1 | . 1 XP Earned 5125 | 3000 2125 XP Spent 2960 | 2960 . Upgrades 9 | 9 . Power Slot 1 | 1 . Propulsion Slot 2 | 2 . Utility Slot 1 | 1 . Weapon Slot 1 | 1 . Core Integrity 4 | 4 . Protomatter Created 45 | . 45 Integrity Restored 54 | . 54 Core 54 | . 54 Protomatter Decayed . | . . Game ------ Seed ArcHardenedMembrane Manual? 0 Play Time 00:10:30 Cumulative 68.2 hours Start 2019.12.18 @ 18:17:03 End 2019.12.18 @ 18:25:02 Sessions 1 Manual Loads 0 Difficulty Rogue Special Mode Winter2019/RPGLIKE Game No. 111 Rogue 111 Adventurer 0 Explorer 0 Win Type - Total 0 Types 0/0/0/0/0/0/0 Lore% 22 Gallery% 26 Achievement% 26 Wizard Run 0 Options --------- ASCII 0 Keyboard 0 Movement Mouse Keybinds 0 Fullscreen 1 Font 18/SmallcapsGlow Map View 76x50 Tactical HUD 1 Map Filters NONE Filters LOW_CONTRAST(13,24,33)|BRIGHTNESS(120)|SATURATION(80) Steam 1 RUN: 064cc0ca-c06f-41cc-8811-7dd9b564c042